lending/lending_fUSD_20250920
["ID","MTS","AMOUNT","RATE_DAILY","PERIOD"]
[386554596,1758387032661,-175.77235458,0.00019973,2]
[386554598,1758387032670,-184.02533393,0.00019973,2]
[386554600,1758387032680,-500.0,0.00019973,2]
[386554602,1758387032692,-500.0,0.00019973,2]
[386554604,1758387032701,-472.70566136,0.00019973,2]
[386554605,1758387032710,-500.0,0.00019973,2]
[386554606,1758387032720,-528.82154686,0.00019982,2]
[386554607,1758387032730,-151.0,0.00019989,2]
[386554608,1758387032739,-151.0,0.00019992,2]
[386554609,1758387032749,-151.0,0.00019995,2]
[386554610,1758387032759,-151.0,0.00019997,2]
[386554611,1758387032768,-151.0,0.00019997,2]
[386554612,1758387032777,-202.990466,0.00019997,2]
[386554613,1758387032786,-151.0,0.00019997,2]
[386554614,1758387032796,-300.0,0.00019999,2]
[386554615,1758387032806,-155.0,0.00019999,2]
[386554616,1758387032816,-793.0,0.00019999,2]
[386554617,1758387032825,-26824.68599662,0.0002,2]
[386554618,1758387032836,-60574.08386663,0.0002,2]
[386554619,1758387032851,-899.0,0.0002,2]
[386554620,1758387032879,-31783.49,0.0002,2]
[386554632,1758387038400,-805.1567533,0.000199,2]
[386554634,1758387038412,-694.7773267,0.0002,2]
[386554636,1758387038434,-2972.5,0.0002,2]
[386554637,1758387038446,-533.783469,0.0002,2]
[386554772,1758387039905,-176705.86233764,0.0002,2]
[386554774,1758387039915,-9228.6437288,0.0002,2]
[386554776,1758387039925,-1305712.80683504,0.0002,2]
[386554778,1758387039934,-379104.77454297,0.0002,2]
[386554781,1758387039959,-1189.18748026,0.0002,2]
[386554783,1758387039970,-20153.98084,0.0002,2]
[386554805,1758387040170,-4644.99999999,0.0002,2]
[386554817,1758387040277,-551.24935575,0.0002,2]
[386554841,1758387042993,-300.0,0.0002,2]
[386554842,1758387043005,-4033.09434796,0.0002,2]
[386554843,1758387043048,-23212.84952812,0.0002,2]
[386554844,1758387043060,-661.709808,0.0002,2]
[386554845,1758387043154,-1202.15,0.0002,2]
[386554889,1758387046088,-503.01904747,0.0002,2]
[386554890,1758387046106,-276.12866054,0.0002,2]
[386554891,1758387046285,-3001.77380768,0.00019016,2]
[386554892,1758387046300,-9666.51123208,0.0002,2]
[386554925,1758387371753,53133.84661812,0.00030137,120]
[386554926,1758387409376,250.0,0.00015,2]
[386555450,1758388147777,-301.52874984,0.00018813,2]
[386555451,1758388156890,-500.0,0.00018813,2]
[386555469,1758388210144,-151.61574741,0.00018813,2]
[386555470,1758388210176,-102.03550275,0.00018813,2]
[386555473,1758388218779,-150.0,0.00018818,2]
[386555474,1758388218912,-100.0,0.00018818,2]
[386555475,1758388225892,-189.84618732,0.00018823,2]
[386555476,1758388225915,-110.15381268,0.00018823,2]
[386555484,1758388232098,-195.0,0.00018823,2]
[386555485,1758388232108,-195.0,0.00018832,2]
[386555486,1758388232117,-208.699518,0.00018852,2]
[386555487,1758388232130,-190.800482,0.00018852,2]
[386555488,1758388232140,-276.71663188,0.00018884,2]
[386555489,1758388232149,-195.0,0.0001893,2]
[386555490,1758388232159,-180.11,0.0001899,2]
[386555491,1758388232169,-157.37288612,0.0001907,2]
[386555492,1758388232180,-359.01028356,0.0001907,2]
[386555493,1758388232190,-160.0,0.0001907,2]
[386555494,1758388232199,-184.87448106,0.00019172,2]
[386555495,1758388232208,-191.68348366,0.00019172,2]
[386555496,1758388232217,-394.91072779,0.00019172,2]
[386555497,1758388232227,-1200.0,0.00019172,2]
[386555498,1758388232236,-1587.95606455,0.00019173,2]
[386555499,1758388232270,-294.46137287,0.00019173,2]
[386555500,1758388232308,-6082.99309526,0.00019173,2]
[386555501,1758388232318,-1156.41848616,0.00019173,2]
[386555502,1758388232327,-600.34502644,0.00019228,2]
[386555503,1758388232337,-151.0,0.00019346,2]
[386555504,1758388232346,-622.65126451,0.00019749,2]
[386555505,1758388232356,-500.0,0.00019749,2]
[386555506,1758388232365,-500.0,0.00019749,2]
[386555507,1758388232375,-18876.0,0.00019881,2]
[386555508,1758388232385,-6180.0,0.00019881,2]
[386555509,1758388232395,-727.0,0.00019881,2]
[386555510,1758388232404,-325.154,0.00019898,2]
[386555511,1758388232413,-5000.0,0.000199,2]
[386555512,1758388232423,-154.40274075,0.000199,2]
[386555529,1758388232729,-670.96396105,0.000199,2]
[386555530,1758388232745,-223.2538167,0.000199,2]
[386555531,1758388232755,-155.53183912,0.000199,2]
[386555532,1758388232766,-150.0,0.0001992,2]
[386555533,1758388232775,-1000.0,0.00019933,2]
[386555534,1758388232785,-500.0,0.00019973,2]
[386555535,1758388232795,-500.0,0.00019973,2]
[386555536,1758388232804,-500.0,0.00019973,2]
[386555537,1758388232813,-500.0,0.00019973,2]
[386555538,1758388232822,-500.0,0.00019973,2]
[386555539,1758388232832,-3638.62864095,0.00019995,2]
[386555540,1758388232841,-979.8707437,0.00019996,2]
[386555541,1758388232851,-14765.42087552,0.00019996,10]
[386555542,1758388232863,-4964.49917237,0.00019996,10]
[386555543,1758388232872,-11917.0015782,0.00019996,2]
[386555544,1758388232881,-10781.37044039,0.00019996,2]
[386555608,1758388240687,-500.0,0.00018929,2]
[386555609,1758388240698,-500.0,0.00018929,2]
[386555610,1758388240711,-4174.0,0.00019882,2]
[386555611,1758388240720,-4628.85251271,0.00019996,2]
[386555612,1758388240729,-47332.1222658,0.00019996,2]
[386555613,1758388240739,-60940.763133,0.00019996,2]
[386555614,1758388240748,-782.0,0.00019999,2]
[386555615,1758388240758,-500.0,0.0002,2]
[386555616,1758388240767,-500.0,0.0002,2]
[386555617,1758388240777,-9228.6437288,0.0002,2]
[386555618,1758388240786,-1394362.31754398,0.0002,2]
[386555619,1758388240796,-347303.38826016,0.0002,2]
[386555622,1758388243128,-562.1,0.0002,2]
[386555627,1758388246151,-4229.0,0.00019882,2]
[386555628,1758388246161,-2175.52497821,0.0002,2]
[386555629,1758388246275,-2769.0077761,0.0002,2]
[386555631,1758388246315,-347121.29186328,0.0002,2]
[386555822,1758388664751,-500.0,0.00018954,2]
[386555860,1758388791720,-500.0,0.00018946,3]
[386555872,1758388817315,222.1,9.454e-05,2]
[386555880,1758388880037,-16486.02065558,0.00018866,2]
[386555883,1758388888157,-500.0,0.00018866,2]
[386555896,1758388897519,-500.0,0.00018866,2]
[386555897,1758388906917,-500.0,0.00018866,2]
[386555986,1758389210441,-224.74,0.00018797,2]
[386555987,1758389210466,-50.52,0.00018797,2]
[386555988,1758389220541,-18.22934442,0.00018866,2]
[386555989,1758389220570,-195.0,0.00018876,2]
[386555990,1758389220751,-173.54131116,0.00018886,2]
[386555992,1758389228657,-250.0,0.00018897,2]
[386555994,1758389237249,-222.1,0.00018907,2]
[386555995,1758389237358,-55.8,0.00018921,2]
[386555997,1758389244925,-139.2,0.00018921,2]
[386555998,1758389245133,-221.6,0.00018945,2]
[386556001,1758389252734,-221.6,0.00018945,2]
[386556002,1758389252758,-56.8,0.00018945,2]
[386556003,1758389261205,-250.0,0.00018945,2]
[386556004,1758389269440,-500.0,0.00018945,2]
[386556008,1758389277068,-500.0,0.00018945,2]
[386556018,1758389284595,-200.0,0.00018944,2]
[386556019,1758389284622,-100.0,0.00018944,2]
[386556028,1758389292539,-150.0,0.00018945,2]
[386556029,1758389292591,-200.0,0.00018945,2]
[386556030,1758389300281,-200.0,0.00018945,2]
[386556031,1758389300303,-100.0,0.00018945,2]
[386556032,1758389308701,-500.0,0.00018945,2]
[386556036,1758389316921,-500.0,0.00018944,2]
[386556045,1758389325881,-500.0,0.00018944,2]
[386556048,1758389332878,-500.0,0.00018944,2]
[386556049,1758389340806,-500.0,0.00018944,2]
[386556050,1758389348747,-200.0,0.00018943,2]
[386556051,1758389348774,-100.0,0.00018943,2]
[386556052,1758389357022,-500.0,0.00018944,2]
[386556053,1758389365044,-500.0,0.00018944,2]
[386556054,1758389372709,-500.0,0.00018944,2]
[386556080,1758389380417,-500.0,0.00018944,2]
[386556100,1758389388379,-500.0,0.00018944,2]
[386556101,1758389396557,-500.0,0.00018944,2]
[386556106,1758389404227,-500.0,0.00018943,2]
[386556107,1758389412369,-512.86,0.00018943,2]
[386556136,1758389420535,-187.14,0.00018943,2]
[386556137,1758389420563,-196.13,0.00018943,2]
[386556138,1758389420612,-103.87,0.00018943,2]
[386556143,1758389428302,-500.0,0.00018944,2]
[386556160,1758389432436,-265.0,0.00018944,2]
[386556161,1758389432445,-500.0,0.00018944,2]
[386556162,1758389432455,-500.0,0.00018944,2]
[386556163,1758389432465,-500.0,0.00018944,2]
[386556164,1758389432475,-500.0,0.00018944,2]
[386556165,1758389432484,-500.0,0.00018944,2]
[386556166,1758389432496,-500.0,0.00018944,2]
[386556167,1758389432506,-500.0,0.00018944,2]
[386556168,1758389432516,-500.0,0.00018944,2]
[386556169,1758389432527,-500.0,0.00018944,2]
[386556170,1758389432543,-500.0,0.00018944,2]
[386556171,1758389432553,-500.0,0.00018944,2]
[386556172,1758389432564,-195.0,0.00018945,2]
[386556173,1758389432574,-166.0,0.00018946,3]
[386556174,1758389432583,-276.43750945,0.00018948,2]
[386556175,1758389432594,-2790.21864942,0.00018949,2]
[386556176,1758389433378,-2774.295589,0.00018949,2]
[386556177,1758389433401,-2957.19882259,0.00018949,2]
[386556178,1758389433434,-540.63181959,0.00018949,2]
[386556179,1758389433471,-2666.0,0.00018949,2]
[386556180,1758389433537,-583.5451194,0.00018949,2]
[386556181,1758389433547,-180.11,0.00018952,2]
[386556182,1758389433556,-223.8855013,0.00019,2]
[386556183,1758389433567,-1156.41848616,0.00019067,2]
[386556184,1758389433576,-213.32528632,0.00019076,2]
[386556185,1758389433585,-1000.0,0.00019108,2]
[386556186,1758389433593,-168.0,0.00019527,2]
[386556187,1758389433602,-151.0,0.00019669,2]
[386556188,1758389433613,-516.38316968,0.00019736,2]
[386556189,1758389433623,-160.0,0.00019736,2]
[386556190,1758389433632,-500.0,0.00019749,2]
[386556191,1758389433642,-500.0,0.00019749,2]
[386556192,1758389433651,-915.89347318,0.000198,2]
[386556193,1758389433660,-151.0,0.00019888,2]
[386556194,1758389433670,-285.16739537,0.00019888,2]
[386556195,1758389433679,-230.3281583,0.00019888,2]
[386556196,1758389433688,-167.79669956,0.00019888,2]
[386556197,1758389433698,-200.0,0.00019888,2]
[386556198,1758389433707,-151.0,0.00019888,2]
[386556199,1758389433716,-729.34994419,0.00019893,2]
[386556200,1758389433726,-1691.80500824,0.00019894,2]
[386556201,1758389433738,-2482.19499176,0.00019894,2]
[386556202,1758389433747,-6180.0,0.00019894,2]
[386556203,1758389433757,-921.0,0.00019894,2]
[386556204,1758389433767,-5000.0,0.000199,2]
[386556205,1758389433777,-729.34994419,0.000199,2]
[386556206,1758389433786,-470.1158535,0.000199,2]
[386556207,1758389433796,-154.40274075,0.000199,2]
[386556208,1758389433806,-729.56898626,0.000199,2]
[386556209,1758389433817,-155.53183912,0.000199,2]
[386556210,1758389433827,-156.587,0.00019943,2]
[386556211,1758389433837,-163.38670321,0.00019945,2]
[386556212,1758389433847,-400.0,0.0001997,2]
[386556213,1758389433856,-500.0,0.00019973,2]
[386556214,1758389433866,-500.0,0.00019973,2]
[386556215,1758389433875,-500.0,0.00019973,2]
[386556216,1758389433890,-260.124,0.00019973,2]
[386556217,1758389433899,-7340.37838451,0.00019985,2]
[386556225,1758389438165,-1261.0,0.00019894,2]
[386556226,1758389438175,-500.0,0.0001998,2]
[386556227,1758389438184,-2807.76898839,0.00019985,2]
[386556228,1758389438194,-27.36564847,0.00019988,2]
[386556229,1758389438272,-2005.5,0.00019988,2]
[386556230,1758389438283,-551.09530478,0.00019988,2]
[386556231,1758389438497,-1.89946462,0.00019988,2]
[386556237,1758389440234,-3393.0,0.00019894,2]
[386556238,1758389440244,-512.24884733,0.00019988,2]
[386556239,1758389440253,-3469.1626481,0.00019988,2]
[386556240,1758389440262,-3303.9974988,0.00019988,2]
[386556241,1758389440272,-3636.4128076,0.00019993,2]
[386556242,1758389440281,-33506.9681093,0.00019993,2]
[386556243,1758389440291,-126267.2915436,0.00019993,2]
[386556244,1758389440300,-3222.8297421,0.00019993,2]
[386556245,1758389440309,-4717.1692887,0.00019993,2]
[386556246,1758389440318,-150.0,0.00019993,2]
[386556247,1758389440328,-150.0,0.00019993,2]
[386556248,1758389440337,-150.0,0.00019993,2]
[386556249,1758389440347,-500.0,0.00019993,2]
[386556250,1758389440357,-500.0,0.00019993,2]
[386556251,1758389440367,-150.0,0.00019993,2]
[386556252,1758389440376,-150.0,0.00019993,2]
[386556253,1758389440385,-150.0,0.00019993,2]
[386556254,1758389440394,-162.380719,0.00019998,2]
[386556255,1758389440404,-300.0,0.00019999,2]
[386556257,1758389440620,-150.0,0.00019999,2]
[386556258,1758389440668,-423.0,0.00019999,2]
[386556259,1758389440677,-506.0,0.00019999,2]
[386556260,1758389440687,-150.0,0.00019999,2]
[386556261,1758389440696,-150.0,0.00019999,2]
[386556262,1758389440705,-1167.0,0.00019999,2]
[386556263,1758389440715,-585.0,0.00019999,2]
[386556264,1758389440725,-479.0,0.00019999,2]
[386556265,1758389440734,-844.0,0.00019999,2]
[386556266,1758389440744,-3250.0,0.00019999,2]
[386556267,1758389440754,-150.0,0.00019999,2]
[386556268,1758389440763,-500.0,0.00019999,2]
[386556269,1758389440781,-1006.0,0.00019999,2]
[386556270,1758389440793,-500.0,0.00019999,2]
[386556271,1758389440803,-150.0,0.00019999,2]
[386556272,1758389440813,-150.0,0.00019999,2]
[386556273,1758389440825,-784.0,0.00019999,2]
[386556274,1758389440835,-293.65477103,0.0002,2]
[386556275,1758389440845,-500.0,0.0002,2]
[386556276,1758389440854,-500.0,0.0002,2]
[386556277,1758389440864,-9228.6437288,0.0002,2]
[386556278,1758389440874,-1404343.22787178,0.0002,2]
[386556279,1758389440883,-255377.09986831,0.0002,2]
[386556282,1758389443273,-1685.38,0.0002,2]
[386556339,1758389445450,-500.0,0.0002,2]
[386556340,1758389445488,-1008.31852036,0.0002,2]
[386556341,1758389445498,-474.74237432,0.0002,3]
[386556342,1758389445507,-1627.9019427,0.0002,2]
[386556343,1758389445516,-500.8571213,0.0002,2]
[386556344,1758389445525,-207.0,0.0002,2]
[386556345,1758389445537,-213.5,0.0002,2]
[386556346,1758389445547,-3095.62,0.0002,2]
[386556347,1758389445556,-1000.0,0.0002,2]
[386556348,1758389445565,-1000.0,0.0002,2]
[386556349,1758389445575,-1011.7270749,0.0002,2]
[386556350,1758389445586,-2064.98914868,0.0002,2]
[386556351,1758389445595,-5178.91412339,0.0002,2]
[386556353,1758389446394,-1378.12549543,0.0002,2]
[386556354,1758389446574,-944.2177592,0.00019894,2]
[386556355,1758389446586,-1096.7822408,0.00019894,2]
[386556356,1758389446595,-37.2073582,0.0002,2]
[386556359,1758389467904,-585.0,0.00018943,2]
[386556360,1758389468269,-30.0,0.00018943,2]
[386556361,1758389474970,-296.57644364,0.00018943,2]
[386556362,1758389475003,-106.84711272,0.00018943,2]
[386556363,1758389475043,-393.15288728,0.00018943,2]
[386556364,1758389483069,-499.4,0.00018943,2]
[386556456,1758389684660,-495.64994608,0.00018941,2]
[386556457,1758389684683,-4.35005392,0.00018941,2]
[386556464,1758389758110,156.92,9.476e-05,2]
[386556493,1758389861581,-500.0,0.0001894,2]
[386556494,1758389861610,-500.0,0.0001894,2]
[386556495,1758389861636,-476.38169533,0.0001894,2]
[386556496,1758389861663,-195.0,0.00018956,2]
[386556497,1758389861688,-195.0,0.00018971,2]
[386556498,1758389861712,-250.0,0.00018971,2]
[386556499,1758389861737,-772.04869071,0.00019,2]
[386556500,1758389861765,-12500.0,0.00019,2]
[386556526,1758389947414,5514.0,0.000179,5]
[386556581,1758390336496,150.0,0.00018887,7]
[386556599,1758390514882,150.918109,0.00017837,2]
[386556600,1758390515236,150.918109,0.00017801,2]
[386556601,1758390515590,150.918109,0.00017651,2]
[386556602,1758390515871,150.918109,0.00017615,2]
[386556603,1758390516155,180.44069,0.00017837,2]
[386556604,1758390516184,150.918109,0.00017559,2]
[386556605,1758390516511,150.918109,0.00017451,2]
[386556606,1758390516544,180.44069,0.00017801,2]
[386556607,1758390516742,150.918109,0.00017441,2]
[386556608,1758390516948,261.094212,0.00017837,2]
[386556609,1758390517070,150.918109,0.00017404,2]
[386556610,1758390517350,150.918109,0.00017369,2]
[386556611,1758390517607,150.918109,0.00017345,2]
[386556612,1758390518915,150.918109,0.00017308,2]
[386556613,1758390521588,151.252523,0.00017837,2]
[386556614,1758390521882,151.252523,0.00017801,2]
[386556615,1758390522209,151.252523,0.0001765,2]
[386556616,1758390522528,151.252523,0.00017559,2]
[386556617,1758390522952,158.812714,0.00017837,2]
[386556618,1758390523228,158.812714,0.00017801,2]
[386556619,1758390523501,151.252523,0.00017448,2]
[386556620,1758390523621,158.812714,0.00017651,2]
[386556621,1758390523906,151.252523,0.00017404,2]
[386556622,1758390523974,158.812714,0.00017615,2]
[386556623,1758390524541,158.812714,0.0001756,2]
[386556624,1758390524640,151.252523,0.00017369,2]
[386556625,1758390524691,158.812714,0.00017555,2]
[386556626,1758390524922,151.252523,0.00017313,2]
[386556627,1758390525651,158.812714,0.00017448,2]
[386556628,1758390526038,158.812714,0.00017404,2]
[386556629,1758390526332,158.812714,0.00017403,2]
[386556630,1758390527288,158.812714,0.00017368,2]
[386556631,1758390527832,158.812714,0.00017345,2]
[386556632,1758390528139,158.812714,0.00017308,2]
[386556656,1758390631446,-1000.0,0.00018887,2]
[386556657,1758390631460,-482.6,0.00018905,2]
[386556658,1758390631470,-195.0,0.00018907,2]
[386556659,1758390631479,-250.0,0.00018909,2]
[386556660,1758390631489,-213.14,0.00018913,2]
[386556661,1758390631499,-195.0,0.00018933,2]
[386556662,1758390631509,-164.04241059,0.00019001,2]
[386556663,1758390631518,-1156.41848616,0.00019487,2]
[386556664,1758390631529,-231.28369723,0.00019487,2]
[386556665,1758390631538,-1200.0,0.00019498,2]
[386556666,1758390631547,-1200.0,0.00019498,2]
[386556667,1758390631556,-300.0,0.00019499,2]
[386556668,1758390631566,-300.0,0.00019499,2]
[386556669,1758390631575,-1000.0,0.000195,2]
[386556670,1758390631585,-731.08,0.000195,2]
[386556671,1758390631595,-300.0,0.00019678,2]
[386556672,1758390631604,-500.0,0.00019678,2]
[386556673,1758390631615,-193.50625662,0.00019725,2]
[386556674,1758390631626,-1193.59,0.00019726,2]
[386556675,1758390631636,-167.23,0.00019726,2]
[386556676,1758390631646,-543.4,0.00019726,2]
[386556677,1758390631656,-1193.59,0.00019726,2]
[386556678,1758390631666,-684.24556957,0.00019741,2]
[386556679,1758390631676,-684.24556957,0.00019742,2]
[386556680,1758390631686,-684.24556957,0.00019752,2]
[386556682,1758390631695,-684.24556957,0.00019758,2]
[386556684,1758390631705,-684.24556957,0.00019763,2]
[386556685,1758390631716,-684.24556957,0.00019782,2]
[386556686,1758390631725,-1166.0,0.0001979,2]
[386556687,1758390631735,-2096.68047,0.000198,2]
[386556688,1758390631744,-1425.0,0.00019816,2]
[386556689,1758390631754,-684.24556957,0.00019854,2]
[386556690,1758390631764,-151.0,0.00019888,2]
[386556691,1758390631774,-1425.0,0.0001989,2]
[386556692,1758390631784,-2963.8274,0.00019893,2]
[386556693,1758390631793,-1000.0,0.00019893,2]
[386556694,1758390631802,-1000.0,0.00019898,2]
[386556695,1758390631812,-1189.70661327,0.00019899,2]
[386556696,1758390631821,-850.0,0.00019899,2]
[386556697,1758390631831,-1189.70661326,0.00019899,2]
[386556698,1758390631840,-1189.70661326,0.00019899,2]
[386556699,1758390631850,-1189.70661326,0.00019899,2]
[386556700,1758390631859,-1189.70661326,0.00019899,2]
[386556701,1758390631870,-5000.0,0.00019899,2]
[386556702,1758390631879,-1189.70661326,0.000199,2]
[386556703,1758390631889,-1189.70661326,0.000199,2]
[386556704,1758390631900,-3720.0,0.000199,2]
[386556705,1758390631910,-1189.70661326,0.000199,2]
[386556707,1758390631920,-1189.70661326,0.000199,2]
[386556708,1758390631930,-402.9564459,0.000199,2]
[386556709,1758390631939,-208.099,0.000199,2]
[386556710,1758390631948,-1189.70661326,0.000199,2]
[386556711,1758390631958,-995.64994608,0.000199,2]
[386556712,1758390631967,-804.41,0.000199,2]
[386556713,1758390631976,-11248.70786781,0.000199,2]
[386556714,1758390631985,-166.43232539,0.000199,2]
[386556715,1758390631995,-559.1366342,0.000199,2]
[386556716,1758390632005,-486.37932416,0.000199,2]
[386556717,1758390632014,-223.25381669,0.000199,2]
[386556718,1758390632024,-173.80768286,0.000199,2]
[386556719,1758390632033,-156.587,0.00019943,2]
[386556720,1758390632043,-500.0,0.00019943,2]
[386556721,1758390632052,-150.0,0.00019943,2]
[386556722,1758390632061,-150.0,0.00019943,2]
[386556723,1758390632071,-500.0,0.00019943,2]
[386556724,1758390632081,-506.0,0.00019943,2]
[386556725,1758390632090,-150.0,0.00019943,2]
[386556726,1758390632099,-150.0,0.00019943,2]
[386556727,1758390632109,-1167.0,0.00019943,2]
[386556728,1758390632119,-585.0,0.00019943,2]
[386556729,1758390632129,-1000.0,0.00019945,2]
[386556730,1758390632138,-501.24251768,0.00019973,2]
[386556731,1758390632148,-500.0,0.00019973,2]
[386556732,1758390632159,-500.0,0.00019973,2]
[386556733,1758390632169,-517.19946058,0.00019973,2]
[386556734,1758390632178,-500.0,0.00019973,2]
[386556735,1758390632188,-500.0,0.00019973,2]
[386556736,1758390632198,-500.0,0.00019973,2]
[386556737,1758390632207,-174.19985265,0.00019973,2]
[386556738,1758390632217,-306.59728476,0.00019973,2]
[386556739,1758390632227,-500.0,0.00019973,2]
[386556740,1758390632236,-500.0,0.00019973,2]
[386556741,1758390632245,-500.0,0.00019973,2]
[386556742,1758390632255,-500.0,0.00019973,2]
[386556743,1758390632265,-500.0,0.00019973,2]
[386556744,1758390632274,-500.0,0.00019973,2]
[386556745,1758390632284,-500.0,0.00019973,2]
[386556746,1758390632294,-508.19736573,0.00019973,2]
[386556747,1758390632303,-150.0,0.00019973,2]
[386556748,1758390632313,-150.0,0.00019988,2]
[386556749,1758390632322,-150.0,0.00019988,2]
[386556750,1758390632332,-150.0,0.00019988,2]
[386556751,1758390632342,-500.0,0.00019988,2]
[386556752,1758390632352,-150.0,0.00019988,2]
[386556753,1758390632361,-500.0,0.00019988,2]
[386556754,1758390632371,-264.02708365,0.00019988,2]
[386556755,1758390632381,-500.0,0.00019988,2]
[386556756,1758390632391,-150.0,0.00019988,2]
[386556757,1758390632400,-150.0,0.00019988,2]
[386556758,1758390632409,-150.0,0.00019988,2]
[386556759,1758390632419,-500.0,0.00019988,2]
[386556760,1758390632428,-500.0,0.00019988,2]
[386556761,1758390632437,-150.0,0.00019988,2]
[386556762,1758390632447,-500.0,0.00019988,2]
[386556763,1758390632456,-992.4397052,0.00019989,2]
[386556764,1758390632465,-162.380719,0.00019998,2]
[386556765,1758390632475,-3069.9842275,0.00019998,2]
[386556766,1758390632484,-20595.04576824,0.00019998,2]
[386556767,1758390632544,-759.0,0.00019998,2]
[386556768,1758390632555,-580.6336635,0.00019998,2]
[386556769,1758390632567,-23920.86023389,0.00019998,2]
[386556770,1758390632622,-15954.04148587,0.00019998,2]
[386556771,1758390632631,-479.0,0.00019998,2]
[386556772,1758390632641,-844.0,0.00019998,2]
[386556773,1758390632651,-150.0,0.00019998,2]
[386556774,1758390632660,-500.0,0.00019998,2]
[386556775,1758390632669,-150.0,0.00019998,2]
[386556776,1758390632679,-150.0,0.00019998,2]
[386556777,1758390632688,-3250.0,0.00019998,2]
[386556778,1758390632697,-610.0,0.00019998,2]
[386556779,1758390632707,-150.0,0.00019998,2]
[386556780,1758390632717,-150.0,0.00019998,2]
[386556781,1758390632726,-500.0,0.00019998,2]
[386556782,1758390632735,-150.0,0.00019998,2]
[386556783,1758390632745,-150.0,0.00019998,2]
[386556784,1758390632755,-150.0,0.00019998,2]
[386556785,1758390632764,-300.0,0.00019999,2]
[386556786,1758390632774,-9229.301357,0.00019999,2]
[386556787,1758390632784,-13065.8803301,0.00019999,2]
[386556788,1758390632794,-1000.0,0.00019999,2]
[386556789,1758390632804,-500.0,0.00019999,2]
[386556790,1758390632814,-779.0,0.00019999,2]
[386556791,1758390632824,-10431.98077005,0.00019999,2]
[386556792,1758390632834,-1096.2029646,0.0002,2]
[386556793,1758390632846,-2160.13959108,0.0002,2]
[386556794,1758390637326,-6117.34068609,0.0002,2]
[386556795,1758390637381,-17154.8,0.0002,2]
[386556874,1758390640131,-257513.08441791,0.0002,2]
[386556875,1758390640140,-1433975.92157181,0.0002,2]
[386556876,1758390640313,-3036.51653968,0.0002,2]
[386556877,1758390640341,-1348.54442893,0.0002,2]
[386556880,1758390642654,-500.0,0.00019943,2]
[386556881,1758390642663,-16227.73742499,0.0002,2]
[386556938,1758390645764,-5000.0,0.00019899,2]
[386556939,1758390645774,-500.0,0.00019943,2]
[386556940,1758390645784,-125467.66975289,0.0002,2]
[386556942,1758390645793,-209875.08216846,0.0002,2]
[386556944,1758390645803,-93524.86587145,0.0002,2]
[386557185,1758391242678,150.0,0.00018875,7]
[386557328,1758391831999,-186.94,0.00018692,2]
[386557329,1758391832012,-1000.0,0.0001876,2]
[386557330,1758391832022,-195.0,0.00018774,2]
[386557332,1758391832031,-250.0,0.00018789,2]
[386557334,1758391832042,-2774.52770467,0.00018817,2]
[386557337,1758391832058,-2225.48229533,0.00018817,2]
[386557339,1758391832068,-195.0,0.00018828,2]
[386557341,1758391832077,-250.0,0.00018863,2]
[386557343,1758391832087,-1200.0,0.00018909,2]
[386557345,1758391832096,-317.51,0.0001891,2]
[386557347,1758391832106,-414.08828049,0.0001891,2]
[386557349,1758391832116,-516.38316968,0.00018917,2]